fUSD/lending_fUSD_20250708
["ID","MTS","AMOUNT","RATE_DAILY","PERIOD"]
[370418883,1752010268621,-460.0,0.00024931,2]
[370418884,1752010268631,-500.0,0.00024931,2]
[370418885,1752010268640,-500.0,0.00024931,2]
[370418886,1752010268651,-674.03,0.00024931,2]
[370418887,1752010268663,-500.0,0.00024931,2]
[370418888,1752010268674,-635.41,0.00024931,2]
[370418889,1752010268684,-500.0,0.00024931,2]
[370418890,1752010268695,-642.0,0.00024931,2]
[370418891,1752010268706,-460.0,0.00024931,2]
[370418892,1752010268717,-460.0,0.00024931,2]
[370418893,1752010268726,-1598.91,0.00024931,2]
[370418894,1752010268739,-460.0,0.00024931,2]
[370418895,1752010268748,-3046.39,0.00024931,2]
[370418896,1752010268759,-1087.61,0.00024931,2]
[370418897,1752010268770,-460.0,0.00024931,2]
[370418898,1752010268782,-460.0,0.00024931,2]
[370418899,1752010268791,-1370.82,0.00024931,2]
[370418900,1752010268801,-460.0,0.00024931,2]
[370418901,1752010268811,-940.19,0.00024931,2]
[370418902,1752010268926,-492.77,0.00024931,2]
[370418903,1752010268936,-612.91,0.00024931,2]
[370418904,1752010268947,-753.12,0.00024931,2]
[370418905,1752010268958,-460.0,0.00024931,2]
[370418906,1752010268969,-825.3,0.00024931,2]
[370418907,1752010268978,-762.76,0.00024931,2]
[370418908,1752010268987,-460.0,0.00024931,2]
[370418909,1752010268997,-463.25,0.00024931,2]
[370418910,1752010269006,-650.59,0.00024931,2]
[370418911,1752010269018,-460.0,0.00024931,2]
[370418912,1752010269027,-914.07,0.00024931,2]
[370418913,1752010269037,-2904.39,0.00024931,2]
[370418914,1752010269046,-720.65,0.00024931,2]
[370418915,1752010269055,-460.0,0.00024931,2]
[370418916,1752010269064,-490.52,0.00024931,2]
[370418917,1752010269074,-282.07,0.00024931,2]
[370418918,1752010269083,-460.0,0.00024931,2]
[370418919,1752010269092,-572.36,0.00024931,2]
[370418920,1752010269101,-460.0,0.00024931,2]
[370418921,1752010269111,-460.0,0.00024931,2]
[370418922,1752010269120,-550.78,0.00024931,2]
[370418923,1752010269129,-602.49,0.00024931,2]
[370418924,1752010269139,-1227.99,0.00024931,2]
[370418925,1752010269148,-1246.46,0.00024931,2]
[370418926,1752010269158,-460.0,0.00024931,2]
[370418927,1752010269167,-1560.26,0.00024931,2]
[370418928,1752010269176,-1604.48,0.00024931,2]
[370418929,1752010269185,-778.43,0.00024931,2]
[370418930,1752010269195,-602.4,0.00024931,2]
[370418931,1752010269204,-460.0,0.00024931,2]
[370418932,1752010269213,-510.22,0.00024931,2]
[370418933,1752010269224,-460.0,0.00024931,2]
[370418934,1752010269234,-460.0,0.00024931,2]
[370418935,1752010269243,-460.0,0.00024931,2]
[370418936,1752010269253,-500.0,0.00024931,2]
[370418937,1752010269262,-460.0,0.00024931,2]
[370418938,1752010269271,-500.0,0.00024931,2]
[370418939,1752010269281,-500.0,0.00024931,2]
[370418940,1752010269291,-500.0,0.00024931,2]
[370418941,1752010269300,-460.0,0.00024931,2]
[370418942,1752010269309,-500.0,0.00024931,2]
[370418943,1752010269318,-500.0,0.00024931,2]
[370418944,1752010269327,-500.0,0.00024931,2]
[370418945,1752010269338,-460.0,0.00024931,2]
[370418946,1752010269348,-500.0,0.00024931,2]
[370418947,1752010269358,-460.0,0.00024931,2]
[370418948,1752010269368,-500.0,0.00024931,2]
[370418949,1752010269377,-500.0,0.00024931,2]
[370418950,1752010269388,-925.04,0.00024931,2]
[370418951,1752010269398,-500.0,0.00024931,2]
[370418952,1752010269407,-460.0,0.00024931,2]
[370418953,1752010269417,-500.0,0.00024931,2]
[370418954,1752010269426,-500.0,0.00024931,2]
[370418955,1752010269436,-500.0,0.00024931,2]
[370418956,1752010269445,-489.74,0.00024931,2]
[370418957,1752010269454,-564.87997962,0.00024931,2]
[370418958,1752010269464,-810.26,0.00024931,2]
[370418959,1752010269475,-500.0,0.00024931,2]
[370418960,1752010269484,-500.0,0.00024931,2]
[370418961,1752010269493,-500.0,0.00024931,2]
[370418962,1752010269503,-500.0,0.00024931,2]
[370418963,1752010269512,-569.95,0.00024931,2]
[370418964,1752010269522,-500.0,0.00024931,2]
[370418965,1752010269532,-460.0,0.00024931,2]
[370418966,1752010269542,-460.0,0.00024931,2]
[370418967,1752010269553,-500.0,0.00024931,2]
[370418968,1752010269564,-460.0,0.00024931,2]
[370418969,1752010269574,-500.0,0.00024931,2]
[370418970,1752010269584,-460.0,0.00024931,2]
[370418971,1752010269594,-500.0,0.00024931,2]
[370418972,1752010269605,-1054.74,0.00024931,2]
[370418973,1752010269615,-460.0,0.00024931,2]
[370418974,1752010269626,-500.0,0.00024931,2]
[370418975,1752010269637,-1044.22,0.00024931,2]
[370418976,1752010269648,-500.0,0.00024931,2]
[370418977,1752010269663,-500.0,0.00024931,2]
[370418978,1752010269675,-500.0,0.00024931,2]
[370418979,1752010269684,-500.0,0.00024931,2]
[370418980,1752010269694,-460.0,0.00024931,2]
[370418981,1752010269705,-500.0,0.00024931,2]
[370418982,1752010269715,-500.0,0.00024931,2]
[370418983,1752010269726,-1292.98,0.00024931,2]
[370418984,1752010269737,-500.0,0.00024931,2]
[370418985,1752010269747,-460.0,0.00024931,2]
[370418986,1752010269756,-500.0,0.00024931,2]
[370418987,1752010269766,-460.0,0.00024931,2]
[370418988,1752010269775,-500.0,0.00024931,2]
[370418989,1752010269785,-460.0,0.00024931,2]
[370418990,1752010269794,-686.07,0.00024931,2]
[370418991,1752010269803,-500.0,0.00024931,2]
[370418992,1752010269813,-1782.41,0.00024931,2]
[370418993,1752010269823,-517.31,0.00024931,2]
[370418994,1752010269832,-500.0,0.00024931,2]
[370418995,1752010269841,-595.53,0.00024931,2]
[370418996,1752010269850,-500.0,0.00024931,2]
[370418997,1752010269859,-578.9,0.00024931,2]
[370418998,1752010269868,-500.0,0.00024931,2]
[370418999,1752010269877,-500.0,0.00024931,2]
[370419000,1752010269886,-460.0,0.00024931,2]
[370419001,1752010269895,-500.0,0.00024931,2]
[370419002,1752010269904,-500.0,0.00024931,2]
[370419003,1752010269913,-500.0,0.00024931,2]
[370419004,1752010269922,-500.0,0.00024931,2]
[370419005,1752010269932,-500.0,0.00024931,2]
[370419006,1752010269941,-500.0,0.00024931,2]
[370419007,1752010269950,-500.0,0.00024931,2]
[370419008,1752010269959,-500.0,0.00024931,2]
[370419009,1752010269968,-500.0,0.00024931,2]
[370419010,1752010269978,-460.0,0.00024931,2]
[370419011,1752010269987,-500.0,0.00024931,2]
[370419012,1752010269996,-500.0,0.00024931,2]
[370419013,1752010270005,-500.0,0.00024931,2]
[370419014,1752010270014,-493.05,0.00024931,2]
[370419015,1752010270023,-460.0,0.00024931,2]
[370419016,1752010270032,-500.0,0.00024931,2]
[370419017,1752010270041,-500.0,0.00024931,2]
[370419018,1752010270050,-500.0,0.00024931,2]
[370419019,1752010270059,-500.0,0.00024931,2]
[370419020,1752010270068,-941.28,0.00024931,2]
[370419021,1752010270077,-500.0,0.00024931,2]
[370419022,1752010270087,-2425.89,0.00024931,2]
[370419023,1752010270096,-500.0,0.00024931,2]
[370419024,1752010270105,-500.0,0.00024931,2]
[370419025,1752010270114,-654.55,0.00024931,2]
[370419026,1752010270124,-500.0,0.00024931,2]
[370419027,1752010270133,-500.0,0.00024931,2]
[370419028,1752010270142,-460.0,0.00024931,2]
[370419029,1752010270151,-500.0,0.00024931,2]
[370419030,1752010270161,-460.0,0.00024931,2]
[370419031,1752010270170,-500.0,0.00024931,2]
[370419032,1752010270179,-500.0,0.00024931,2]
[370419033,1752010270188,-500.0,0.00024931,2]
[370419034,1752010270197,-500.0,0.00024931,2]
[370419035,1752010270207,-500.0,0.00024931,2]
[370419036,1752010270216,-1165.94,0.00024931,2]
[370419037,1752010270226,-500.0,0.00024931,2]
[370419038,1752010270235,-500.0,0.00024931,2]
[370419039,1752010270245,-500.0,0.00024931,2]
[370419040,1752010270254,-500.0,0.00024931,2]
[370419041,1752010270263,-586.06809688,0.00024931,2]
[370419042,1752010270273,-500.0,0.00024931,2]
[370419043,1752010270282,-851.0,0.00024931,2]
[370419044,1752010270291,-543.5,0.00024931,2]
[370419045,1752010270301,-614.95,0.00024931,2]
[370419046,1752010270310,-2222.67,0.00024931,2]
[370419047,1752010270319,-460.0,0.00024931,2]
[370419048,1752010270328,-481.74,0.00024931,2]
[370419049,1752010270337,-629.27,0.00024931,2]
[370419050,1752010270348,-1463.4,0.00024931,2]
[370419051,1752010270357,-497.7,0.00024931,2]
[370419052,1752010270366,-1791.7,0.00024931,2]
[370419053,1752010270375,-460.0,0.00024931,2]
[370419054,1752010270384,-460.0,0.00024931,2]
[370419055,1752010270394,-2220.81,0.00024931,2]
[370419056,1752010270403,-541.34,0.00024931,2]
[370419057,1752010270413,-2064.02,0.00024931,2]
[370419058,1752010270421,-460.0,0.00024931,2]
[370419059,1752010270431,-460.0,0.00024931,2]
[370419060,1752010270440,-460.0,0.00024931,2]
[370419061,1752010270449,-460.0,0.00024931,2]
[370419062,1752010270458,-460.0,0.00024931,2]
[370419063,1752010270468,-460.0,0.00024931,2]
[370419064,1752010270478,-1588.49,0.00024931,2]
[370419065,1752010270487,-649.66,0.00024931,2]
[370419066,1752010270496,-460.0,0.00024931,2]
[370419067,1752010270505,-460.0,0.00024931,2]
[370419068,1752010270518,-648.01,0.00024931,2]
[370419069,1752010270528,-460.0,0.00024931,2]
[370419070,1752010270537,-460.0,0.00024931,2]
[370419071,1752010270547,-499.39,0.00024931,2]
[370419072,1752010270557,-460.0,0.00024931,2]
[370419073,1752010270567,-523.55,0.00024931,2]
[370419074,1752010270576,-460.0,0.00024931,2]
[370419075,1752010270587,-460.0,0.00024931,2]
[370419076,1752010270596,-460.0,0.00024931,2]
[370419077,1752010270605,-984.38,0.00024931,2]
[370419078,1752010270615,-1464.84,0.00024931,2]
[370419079,1752010270624,-1352.59,0.00024931,2]
[370419080,1752010270642,-517.5,0.00024931,2]
[370419081,1752010270653,-1337.53,0.00024931,2]
[370419082,1752010270667,-460.0,0.00024931,2]
[370419083,1752010270676,-3102.29,0.00024931,2]
[370419084,1752010270686,-813.39,0.00024931,2]
[370419085,1752010270696,-460.0,0.00024931,2]
[370419086,1752010270708,-602.8,0.00024931,2]
[370419087,1752010270718,-460.0,0.00024931,2]
[370419088,1752010270730,-460.0,0.00024931,2]
[370419089,1752010270740,-460.0,0.00024931,2]
[370419090,1752010270751,-460.0,0.00024931,2]
[370419091,1752010270762,-460.0,0.00024931,2]
[370419092,1752010270771,-1229.73,0.00024931,2]
[370419093,1752010270781,-460.0,0.00024931,2]
[370419094,1752010270790,-460.0,0.00024931,2]
[370419095,1752010270799,-525.93,0.00024931,2]
[370419096,1752010270808,-500.0,0.00024931,2]
[370419097,1752010270817,-500.0,0.00024931,2]
[370419098,1752010270827,-500.0,0.00024931,2]
[370419099,1752010270836,-500.0,0.00024931,2]
[370419100,1752010270845,-1363.12,0.00024931,2]
[370419101,1752010270855,-460.0,0.00024931,2]
[370419102,1752010270864,-500.0,0.00024931,2]
[370419103,1752010270873,-500.0,0.00024931,2]
[370419104,1752010270882,-500.0,0.00024931,2]
[370419105,1752010270892,-1749.27,0.00024931,2]
[370419106,1752010270901,-500.0,0.00024931,2]
[370419107,1752010270911,-521.41356252,0.00024931,2]
[370419108,1752010270920,-500.0,0.00024931,2]
[370419109,1752010270929,-4999.35,0.00024931,2]
[370419110,1752010270939,-1772.27,0.00024931,2]
[370419111,1752010270948,-500.0,0.00024931,2]
[370419112,1752010270958,-500.0,0.00024931,2]
[370419113,1752010270967,-726.67,0.00024931,2]
[370419114,1752010270977,-500.0,0.00024931,2]
[370419115,1752010270987,-600.22,0.00024931,2]
[370419116,1752010270997,-500.0,0.00024931,2]
[370419117,1752010271007,-460.0,0.00024931,2]
[370419118,1752010271018,-500.0,0.00024931,2]
[370419119,1752010271028,-500.0,0.00024931,2]
[370419120,1752010271037,-500.0,0.00024931,2]
[370419121,1752010271046,-500.0,0.00024931,2]
[370419122,1752010271055,-500.0,0.00024931,2]
[370419123,1752010271065,-500.0,0.00024931,2]
[370419124,1752010271074,-500.0,0.00024931,2]
[370419125,1752010271089,-500.0,0.00024931,2]
[370419126,1752010271098,-500.0,0.00024931,2]
[370419127,1752010271108,-500.0,0.00024931,2]
[370419128,1752010271117,-500.0,0.00024931,2]
[370419129,1752010271127,-500.0,0.00024931,2]
[370419130,1752010271136,-500.0,0.00024931,2]
[370419131,1752010271146,-500.0,0.00024931,2]
[370419132,1752010271155,-500.0,0.00024931,2]
[370419133,1752010271165,-500.0,0.00024931,2]
[370419134,1752010271175,-500.0,0.00024931,2]
[370419135,1752010271185,-460.0,0.00024931,2]
[370419136,1752010271195,-500.0,0.00024931,2]
[370419137,1752010271205,-500.0,0.00024931,2]
[370419138,1752010271215,-460.0,0.00024931,2]
[370419139,1752010271225,-500.0,0.00024931,2]
[370419140,1752010271235,-500.0,0.00024931,2]
[370419141,1752010271245,-1240.91,0.00024931,2]
[370419142,1752010271255,-500.0,0.00024931,2]
[370419143,1752010271266,-500.0,0.00024931,2]
[370419144,1752010271277,-500.0,0.00024931,2]
[370419145,1752010271288,-500.0,0.00024931,2]
[370419146,1752010271297,-1850.49,0.00024931,2]
[370419147,1752010271308,-500.0,0.00024931,2]
[370419148,1752010271318,-500.0,0.00024931,2]
[370419149,1752010271329,-1903.65,0.00024931,2]
[370419150,1752010271338,-500.0,0.00024931,2]
[370419151,1752010271348,-460.0,0.00024931,2]
[370419152,1752010271359,-500.0,0.00024931,2]
[370419153,1752010271370,-500.0,0.00024931,2]
[370419154,1752010271379,-500.0,0.00024931,2]
[370419155,1752010271390,-500.0,0.00024931,2]
[370419156,1752010271399,-500.0,0.00024931,2]
[370419157,1752010271409,-500.0,0.00024931,2]
[370419158,1752010271418,-589.17,0.00024931,2]
[370419159,1752010271428,-500.0,0.00024931,2]
[370419160,1752010271438,-500.0,0.00024931,2]
[370419161,1752010271448,-500.0,0.00024931,2]
[370419162,1752010271459,-500.0,0.00024931,2]
[370419163,1752010271470,-611.63,0.00024931,2]
[370419164,1752010271479,-500.0,0.00024931,2]
[370419165,1752010271489,-500.0,0.00024931,2]
[370419166,1752010271501,-500.0,0.00024931,2]
[370419167,1752010271512,-500.0,0.00024931,2]
[370419168,1752010271528,-500.0,0.00024931,2]
[370419169,1752010271539,-839.79,0.00024931,2]
[370419170,1752010271551,-500.0,0.00024931,2]
[370419171,1752010271562,-500.0,0.00024931,2]
[370419172,1752010271573,-460.0,0.00024931,2]
[370419173,1752010271583,-500.0,0.00024931,2]
[370419174,1752010271594,-500.0,0.00024931,2]
[370419175,1752010271605,-500.0,0.00024931,2]
[370419176,1752010271615,-500.0,0.00024931,2]
[370419177,1752010271626,-460.0,0.00024931,2]
[370419178,1752010271636,-500.0,0.00024931,2]
[370419179,1752010271649,-460.0,0.00024931,2]
[370419180,1752010271661,-500.0,0.00024931,2]
[370419181,1752010271672,-500.0,0.00024931,2]
[370419182,1752010271683,-500.0,0.00024931,2]
[370419183,1752010271693,-500.0,0.00024931,2]
[370419184,1752010271704,-500.0,0.00024931,2]
[370419185,1752010271713,-500.0,0.00024931,2]
[370419186,1752010271723,-500.0,0.00024931,2]
[370419187,1752010271733,-500.0,0.00024931,2]
[370419188,1752010271743,-500.0,0.00024931,2]
[370419189,1752010271753,-500.0,0.00024931,2]
[370419190,1752010271763,-500.0,0.00024931,2]
[370419191,1752010271772,-460.0,0.00024931,2]
[370419192,1752010271782,-500.0,0.00024931,2]
[370419193,1752010271791,-500.0,0.00024931,2]
[370419194,1752010271800,-500.0,0.00024931,2]
[370419195,1752010271810,-7068.12,0.00024931,2]
[370419196,1752010271819,-500.0,0.00024931,2]
[370419197,1752010271830,-500.0,0.00024931,2]
[370419198,1752010271840,-500.0,0.00024931,2]
[370419199,1752010271850,-3344.5,0.00024931,2]
[370419200,1752010271860,-500.0,0.00024931,2]
[370419201,1752010271870,-500.0,0.00024931,2]
[370419202,1752010271880,-500.0,0.00024931,2]
[370419203,1752010271889,-500.0,0.00024931,2]
[370419204,1752010271899,-500.0,0.00024931,2]
[370419205,1752010271909,-500.0,0.00024931,2]
[370419206,1752010271918,-500.0,0.00024931,2]
[370419207,1752010271928,-500.0,0.00024931,2]
[370419208,1752010271938,-500.0,0.00024931,2]
[370419209,1752010271947,-500.0,0.00024931,2]
[370419210,1752010271961,-500.0,0.00024931,2]
[370419211,1752010271970,-500.0,0.00024931,2]
[370419212,1752010271980,-500.0,0.00024931,2]
[370419213,1752010271990,-460.0,0.00024931,2]
[370419214,1752010271999,-975.57,0.00024931,2]
[370419215,1752010272008,-500.0,0.00024931,2]
[370419216,1752010272018,-500.0,0.00024931,2]
[370419217,1752010272027,-460.0,0.00024931,2]
[370419218,1752010272036,-500.0,0.00024931,2]
[370419219,1752010272046,-500.0,0.00024931,2]
[370419220,1752010272055,-500.0,0.00024931,2]
[370419221,1752010272064,-500.0,0.00024931,2]
[370419222,1752010272074,-460.0,0.00024931,2]
[370419223,1752010272083,-500.0,0.00024931,2]
[370419224,1752010272092,-500.0,0.00024931,2]
[370419225,1752010272101,-460.0,0.00024931,2]
[370419226,1752010272111,-500.0,0.00024931,2]
[370419227,1752010272120,-500.0,0.00024931,2]
[370419228,1752010272130,-460.0,0.00024931,2]
[370419229,1752010272141,-500.0,0.00024931,2]
[370419230,1752010272151,-500.0,0.00024931,2]
[370419231,1752010272161,-500.0,0.00024931,2]
[370419232,1752010272172,-500.0,0.00024931,2]
[370419233,1752010272182,-500.0,0.00024931,2]
[370419234,1752010272192,-3625.36,0.00024931,2]
[370419235,1752010272203,-460.0,0.00024931,2]
[370419236,1752010272214,-500.0,0.00024931,2]
[370419237,1752010272224,-500.0,0.00024931,2]
[370419238,1752010272235,-500.0,0.00024931,2]
[370419239,1752010272245,-2158.24,0.00024931,2]
[370419240,1752010272255,-500.0,0.00024931,2]
[370419241,1752010272265,-500.0,0.00024931,2]
[370419242,1752010272275,-500.0,0.00024931,2]
[370419243,1752010272286,-500.0,0.00024931,2]
[370419244,1752010272296,-500.0,0.00024931,2]
[370419245,1752010272307,-500.0,0.00024931,2]
[370419246,1752010272317,-460.0,0.00024931,2]
[370419247,1752010272327,-500.0,0.00024931,2]
[370419248,1752010272338,-500.0,0.00024931,2]
[370419249,1752010272350,-500.0,0.00024931,2]
[370419250,1752010272361,-500.0,0.00024931,2]
[370419251,1752010272372,-708.82,0.00024931,2]
[370419252,1752010272383,-500.0,0.00024931,2]
[370419253,1752010272393,-500.0,0.00024931,2]
[370419254,1752010272403,-460.0,0.00024931,2]
[370419255,1752010272414,-1237.72,0.00024931,2]
[370419256,1752010272424,-460.0,0.00024931,2]
[370419257,1752010272433,-460.0,0.00024931,2]
[370419258,1752010272442,-1010.66,0.00024931,2]
[370419259,1752010272452,-1763.85,0.00024931,2]
[370419260,1752010272463,-19241.81,0.00024931,2]
[370419261,1752010272474,-758.04,0.00024931,2]
[370419262,1752010272484,-460.0,0.00024931,2]
[370419263,1752010272494,-460.0,0.00024931,2]
[370419264,1752010272505,-460.0,0.00024931,2]
[370419265,1752010272515,-460.0,0.00024931,2]
[370419266,1752010272525,-2133.32,0.00024931,2]
[370419267,1752010272536,-1411.54,0.00024931,2]
[370419268,1752010272546,-825.39,0.00024931,2]
[370419269,1752010272556,-502.21,0.00024931,2]
[370419270,1752010272566,-460.0,0.00024931,2]
[370419271,1752010272577,-460.0,0.00024931,2]
[370419272,1752010272587,-5404.92,0.00024931,2]
[370419273,1752010272597,-460.0,0.00024931,2]
[370419274,1752010272607,-846.58,0.00024931,2]
[370419275,1752010272617,-876.49,0.00024931,2]
[370419276,1752010272627,-460.0,0.00024931,2]
[370419277,1752010272637,-795.24,0.00024931,2]
[370419278,1752010272647,-4387.07,0.00024931,2]
[370419279,1752010272668,-496.82,0.00024931,2]
[370419280,1752010272679,-634.56,0.00024931,2]
[370419281,1752010272690,-460.0,0.00024931,2]
[370419282,1752010272701,-463.84,0.00024931,2]
[370419283,1752010272711,-460.0,0.00024931,2]
[370419284,1752010272721,-3525.8471921,0.00024931,2]
[370419285,1752010275281,-225.08818452,0.00024557,2]
[370419286,1752010275291,-755.14,0.00024657,2]
[370419287,1752010275300,-665.13674743,0.00024657,2]
[370419288,1752010275311,-90.00325257,0.00024657,2]
[370419289,1752010275321,-432.01674741,0.00024657,2]
[370419290,1752010276482,-1092.41026849,0.00024164,5]
[370419291,1752010276491,-1062.69605037,0.00024164,5]
[370419292,1752010276501,-27.98325259,0.00024657,2]
[370419293,1752010276513,-488.18,0.00024657,2]
[370419294,1752010276522,-460.0,0.00024657,2]
[370419295,1752010276532,-245.60347574,0.00024657,2]
[370419296,1752010276544,-460.0,0.00024657,2]
[370419297,1752010276555,-727.42,0.00024657,2]
[370419298,1752010276566,-700.9458191,0.00024657,2]
[370419299,1752010394167,2000.0,0.00030137,120]
[370419300,1752010400912,500.0,0.00030137,120]
[370419303,1752010523584,158.37,0.00013699,2]
[370419315,1752011432004,-151.0,0.00020899,2]
[370419316,1752011432015,-276.53,0.00020899,2]
[370419317,1752011432026,-505.0,0.00020933,2]
[370419318,1752011432036,-150.0,0.00022,2]
[370419319,1752011432047,-505.0,0.00022049,3]
[370419320,1752011432058,-300.0,0.00022413,2]
[370419321,1752011432070,-300.0,0.00022413,2]
[370419322,1752011432080,-1200.0,0.00022413,2]
[370419323,1752011432092,-150.0,0.00022414,2]
[370419324,1752011432102,-150.0,0.00022414,2]
[370419325,1752011432113,-157.76847181,0.00022414,2]
[370419326,1752011432122,-150.0,0.00022414,2]
[370419327,1752011432134,-236.25644495,0.00022414,2]
[370419328,1752011432144,-150.0,0.00022414,2]
[370419329,1752011432154,-150.0,0.00022414,2]
[370419330,1752011432166,-150.0,0.00022414,2]
[370419331,1752011432182,-150.0,0.00022414,2]
[370419332,1752011432192,-150.0,0.00022414,2]
[370419333,1752011432201,-150.0,0.00022414,2]
[370419334,1752011432213,-258.2103285,0.00022414,2]
[370419335,1752011432225,-235.82980756,0.00022414,2]
[370419336,1752011432234,-666.0,0.00022469,2]
[370419337,1752011432245,-150.0,0.0002247,2]
[370419338,1752011432255,-1000.0,0.00022479,2]
[370419339,1752011432265,-150.0,0.00022494,4]
[370419340,1752011432275,-211.93,0.00022557,2]
[370419341,1752011432285,-200.0,0.00022557,2]
[370419343,1752011432294,-150.0,0.00022574,4]
[370419345,1752011432304,-880.61,0.00022585,2]
[370419347,1752011432314,-150.0,0.00022655,4]
[370419348,1752011432324,-150.0,0.0002269,4]
[370419350,1752011432334,-173.64,0.0002271,2]
[370419352,1752011432344,-1302.77,0.0002273,2]
[370419354,1752011432354,-150.0,0.00022735,4]
[370419356,1752011432367,-180.05,0.00022751,2]
[370419359,1752011432376,-672.29,0.00022784,2]
[370419360,1752011432385,-150.0,0.00022815,4]
[370419362,1752011432395,-150.0,0.00022896,4]
[370419365,1752011432404,-657.73657364,0.000229,8]
[370419366,1752011432414,-150.0,0.00022912,4]
[370419368,1752011432424,-150.0,0.0002294,2]
[370419370,1752011432434,-150.0,0.00022967,4]
[370419372,1752011432444,-150.0,0.00022976,4]
[370419374,1752011432453,-556.0,0.00022989,2]
[370419376,1752011432463,-300.0,0.00022989,2]
[370419379,1752011432473,-150.0,0.00022996,2]
[370419380,1752011432482,-200.0,0.00023,2]
[370419382,1752011432492,-250.0,0.00023015,2]
[370419384,1752011432501,-150.0,0.00023056,4]
[370419387,1752011432510,-150.0,0.00023066,2]
[370419390,1752011432519,-1000.0,0.00023097,2]
[370419394,1752011432528,-657.73657356,0.00023107,8]
[370419396,1752011432538,-150.0,0.00023137,4]
[370419398,1752011432547,-776.4,0.00023141,2]
[370419400,1752011432557,-167.17,0.00023163,2]
[370419402,1752011432566,-505.0,0.00023165,5]
[370419404,1752011432575,-150.0,0.00023182,2]
[370419406,1752011432584,-150.0,0.00023217,4]
[370419408,1752011432593,-150.0,0.00023244,4]
[370419410,1752011432603,-203.17,0.00023258,2]
[370419412,1752011432612,-150.0,0.00023297,4]
[370419414,1752011432622,-23900.0,0.00023299,2]
[370419416,1752011432631,-657.73657356,0.00023314,9]
[370419417,1752011432640,-150.0,0.00023357,2]
[370419418,1752011432649,-950.23,0.00023368,2]
[370419419,1752011432659,-150.0,0.00023378,4]
[370419420,1752011432668,-150.0,0.00023384,2]
[370419421,1752011432677,-150.0,0.0002341,4]
[370419422,1752011432686,-150.0,0.0002341,2]
[370419441,1752011433019,-150.0,0.00023458,4]
[370419443,1752011433029,-200.0,0.00023489,2]
[370419446,1752011433039,-207.4,0.00023489,2]
[370419448,1752011433048,-4031.856,0.00023489,2]
[370419451,1752011433058,-500.0,0.00023489,2]
[370419453,1752011433067,-500.0,0.00023489,2]
[370419455,1752011433077,-500.0,0.00023489,2]
[370419457,1752011433087,-500.0,0.00023489,2]
[370419459,1752011433096,-500.0,0.00023489,2]
[370419461,1752011433105,-500.0,0.00023489,2]
[370419463,1752011433114,-500.0,0.00023489,2]
[370419465,1752011433124,-500.0,0.00023489,2]